[Event "FIDE Open World Rapid 2024"]
[Site "New York"]
[Date "2024.12.27"]
[Round "7.37"]
[White "Horvath, Dominik"]
[Black "Kvaloy, Aksel Bu"]
[Result "1/2-1/2"]
[ECO "C60"]
[WhiteElo "2542"]
[BlackElo "2490"]
[Annotator "ChessBase"]
[PlyCount "182"]
[EventDate "2024.12.14"]
[EventType "swiss"]
[EventCountry "USA"]
[SourceTitle "playchess.com"]
[Source "ChessBase"]
[SourceQuality "1"]
[TimeControl "900+10"]

1. e4 {[%emt 0:00:01]} e5 {[%emt 0:00:03]} 2. Nf3 {[%emt 0:00:01]} Nc6 {[%emt 0:00:01]} 3. Bb5 {[%emt 0:00:03]} g6 {[%emt 0:00:01]} 4. Nc3 {[%emt 0:00:31]} Bg7 {[%emt 0:00:14]} 5. h4 {[%emt 0:00:27]} Nf6 {[%emt 0:00:41]} 6. d3 {[%emt 0:00:08]} d6 {[%emt 0:00:11]} 7. Nd5 {[%emt 0:00:15]} a6 {[%emt 0:00:52]} 8. Bc4 {[%emt 0:00:06]} Na5 {[%emt 0:00:28]} 9. Nxf6+ {[%emt 0:00:24]} Bxf6 {[%emt 0:00:04]} 10. Bh6 {[%emt 0:01:16]} Nxc4 {[%emt 0:00:15]} 11. dxc4 {[%emt 0:00:02]} Bg4 {[%emt 0:00:17]} 12. g3 {[%emt 0:00:27]} Qd7 {[%emt 0:02:19]} 13. Qd3 {[%emt 0:00:04]} O-O-O {[%emt 0:00:22]} 14. O-O-O {[%emt 0:02:24]} Be7 {[%emt 0:00:22]} 15. Rd2 {[%emt 0:02:12]} f5 {[%emt 0:01:42]} 16. Ng5 {[%emt 0:00:02]} fxe4 {[%emt 0:00:39]} 17. Nxe4 {[%emt 0:01:32]} Qc6 {[%emt 0:00:31]} 18. Re1 {[%emt 0:00:06]} b6 {[%emt 0:01:23]} 19. b3 {[%emt 0:00:20]} Kb7 {[%emt 0:00:16]} 20. Nc3 {[%emt 0:00:21]} Bf5 {[%emt 0:00:30]} 21. Qe3 {[%emt 0:00:14]} Bf8 {[%emt 0:01:13]} 22. Bg5 {[%emt 0:00:30]} Rd7 {[%emt 0:00:11]} 23. Nd5 {[%emt 0:00:06]} Bg7 {[%emt 0:00:33]} 24. f3 {[%emt 0:01:42]} Qc5 {[%emt 0:00:33]} 25. Kb1 {[%emt 0:01:41]} Qxe3 {[%emt 0:00:31]} 26. Bxe3 {[%emt 0:00:12]} Rf8 {[%emt 0:00:18]} 27. f4 {[%emt 0:00:01]} exf4 {[%emt 0:00:24]} 28. Bxf4 {[%emt 0:00:02]} c6 {[%emt 0:00:23]} 29. Ne3 {[%emt 0:01:16]} Bc3 {[%emt 0:00:08]} 30. Red1 {[%emt 0:00:04]} Bxd2 {[%emt 0:00:11]} 31. Rxd2 {[%emt 0:00:01]} Re8 {[%emt 0:00:17]} 32. Kb2 {[%emt 0:00:03]} b5 {[%emt 0:00:27]} 33. Kc3 {[%emt 0:00:11]} Re4 {[%emt 0:00:20]} 34. Bg5 {[%emt 0:00:09]} Re6 {[%emt 0:01:23]} 35. a3 {[%emt 0:00:22]} Rf7 {[%emt 0:00:17]} 36. Bf4 {[%emt 0:00:09]} Rd7 {[%emt 0:00:26]} 37. Bg5 {[%emt 0:00:08]} Be4 {[%emt 0:00:02]} 38. Kb4 {[%emt 0:01:00]} c5+ {[%emt 0:00:22]} 39. Kc3 {[%emt 0:00:03]} Bc6 {[%emt 0:00:25]} 40. Bf4 {[%emt 0:00:03]} Rde7 {[%emt 0:00:16]} 41. Rd3 {[%emt 0:00:26]} Rd7 {[%emt 0:00:52]} 42. Rd2 {[%emt 0:00:12]} Be4 {[%emt 0:00:04]} 43. Kb2 {[%emt 0:00:29]} Kc6 {[%emt 0:00:09]} 44. Kc3 {[%emt 0:00:47]} Rf7 {[%emt 0:00:09]} 45. b4 {[%emt 0:00:42]} Bf3 {[%emt 0:00:39]} 46. Bh6 {[%emt 0:00:46]} bxc4 {[%emt 0:00:08]} 47. Nxc4 {[%emt 0:00:01]} d5 {[%emt 0:00:09]} 48. Na5+ {[%emt 0:00:01]} Kb5 {[%emt 0:00:12]} 49. Nb3 {[%emt 0:00:02]} Re2 {[%emt 0:00:41]} 50. Nxc5 {[%emt 0:00:21]} Rxd2 {[%emt 0:00:03]} 51. a4+ {[%emt 0:00:02]} Kc6 {[%emt 0:00:05]} 52. Kxd2 {[%emt 0:00:00]} Be4 {[%emt 0:00:11]} 53. Bf4 {[%emt 0:00:02]} a5 {[%emt 0:00:09]} 54. c3 {[%emt 0:00:03]} Bf5 {[%emt 0:00:22]} 55. Nb3 {[%emt 0:00:06]} axb4 {[%emt 0:00:14]} 56. cxb4 {[%emt 0:00:01]} d4 {[%emt 0:00:15]} 57. Nxd4+ {[%emt 0:00:10]} Kd5 {[%emt 0:00:00]} 58. Kc3 {[%emt 0:00:02]} Rf8 {[%emt 0:00:12]} 59. Nxf5 {[%emt 0:00:32]} Rc8+ {[%emt 0:00:11]} 60. Kb3 {[%emt 0:00:02]} gxf5 {[%emt 0:00:01]} 61. b5 {[%emt 0:00:01]} Re8 {[%emt 0:00:29]} 62. Kb4 {[%emt 0:00:15]} Re1 {[%emt 0:00:01]} 63. Ka5 {[%emt 0:00:12]} Ra1 {[%emt 0:00:04]} 64. b6 {[%emt 0:00:23]} Kc6 {[%emt 0:00:03]} 65. Bc7 {[%emt 0:00:01]} h5 {[%emt 0:00:09]} 66. Kb4 {[%emt 0:00:18]} Rb1+ {[%emt 0:00:07]} 67. Kc4 {[%emt 0:00:02]} Ra1 {[%emt 0:00:01]} 68. Kb4 {[%emt 0:00:00]} Rb1+ {[%emt 0:00:02]} 69. Kc4 {[%emt 0:00:09]} Re1 {[%emt 0:00:08]} 70. a5 {[%emt 0:00:16]} Re4+ {[%emt 0:00:01]} 71. Kd3 {[%emt 0:00:02]} Kb7 {[%emt 0:00:02]} 72. Kc3 {[%emt 0:00:10]} Ra4 {[%emt 0:00:14]} 73. Kd3 {[%emt 0:00:05]} Rxa5 {[%emt 0:00:20]} 74. Kd4 {[%emt 0:00:02]} Kc6 {[%emt 0:00:08]} 75. Ke3 {[%emt 0:00:13]} Ra4 {[%emt 0:00:02]} 76. Kf3 {[%emt 0:00:07]} Rb4 {[%emt 0:00:03]} 77. Bd8 {[%emt 0:00:42]} Kd5 {[%emt 0:00:06]} 78. Bc7 {[%emt 0:00:15]} Ke6 {[%emt 0:00:13]} 79. Bd8 {[%emt 0:00:07]} Ke5 {[%emt 0:00:24]} 80. Bc7+ {[%emt 0:00:01]} Kd5 {[%emt 0:00:01]} 81. Bd8 {[%emt 0:00:02]} f4 {[%emt 0:00:47]} 82. gxf4 {[%emt 0:00:24]} Rb3+ {[%emt 0:00:01]} 83. Ke2 {[%emt 0:00:22]} Ke4 {[%emt 0:00:03]} 84. Bc7 {[%emt 0:00:01]} Kf5 {[%emt 0:00:32]} 85. Kd2 {[%emt 0:00:03]} Kg4 {[%emt 0:00:01]} 86. Kc2 {[%emt 0:00:00]} Rb5 {[%emt 0:00:08]} 87. Kc3 {[%emt 0:00:01]} Kxh4 {[%emt 0:00:18]} 88. Kc4 {[%emt 0:00:00]} Rb1 {[%emt 0:00:06]} 89. Kc5 {[%emt 0:00:01]} Kg4 {[%emt 0:00:06]} 90. f5 {[%emt 0:00:01]} Kxf5 {[%emt 0:00:05]} 91. Kc6 {[%emt 0:00:02]} Rxb6+ {[%emt 0:00:26]} 1/2-1/2

[Event "FIDE Open World Rapid 2024"]
[Site "New York"]
[Date "2024.12.27"]
[Round "7.37"]
[White "Mamedov, Edgar"]
[Black "Paravyan, David"]
[Result "0-1"]
[ECO "D26"]
[WhiteElo "2441"]
[BlackElo "2620"]
[Annotator "ChessBase"]
[PlyCount "106"]
[EventDate "2024.12.14"]
[EventType "swiss"]
[EventCountry "USA"]
[SourceTitle "playchess.com"]
[Source "ChessBase"]
[SourceQuality "1"]
[TimeControl "900+10"]

1. d4 {[%emt 0:00:02]} d5 {[%emt 0:00:04]} 2. Nf3 {[%emt 0:00:08]} Nf6 {[%emt 0:00:02]} 3. c4 {[%emt 0:00:02]} dxc4 {[%emt 0:00:03]} 4. e3 {[%emt 0:00:01]} e6 {[%emt 0:00:09]} 5. Bxc4 {[%emt 0:00:03]} c5 {[%emt 0:00:02]} 6. O-O {[%emt 0:00:03]} cxd4 {[%emt 0:00:02]} 7. Nxd4 {[%emt 0:00:28]} Bc5 {[%emt 0:00:02]} 8. Nb5 {[%emt 0:01:18]} Qe7 {[%emt 0:04:03]} 9. a3 {[%emt 0:01:54]} a6 {[%emt 0:04:11]} 10. N5c3 {[%emt 0:00:34]} O-O {[%emt 0:00:29]} 11. b4 {[%emt 0:00:13]} Bd6 {[%emt 0:00:28]} 12. Be2 {[%emt 0:00:35]} Rd8 {[%emt 0:00:23]} 13. Qb3 {[%emt 0:01:00]} b5 {[%emt 0:00:24]} 14. Nd2 {[%emt 0:02:47]} Bb7 {[%emt 0:00:03]} 15. Bf3 {[%emt 0:00:17]} Bxf3 {[%emt 0:00:36]} 16. Nxf3 {[%emt 0:00:04]} Nbd7 {[%emt 0:00:22]} 17. Rb1 {[%emt 0:02:27]} Ne5 {[%emt 0:01:23]} 18. Nd4 {[%emt 0:00:11]} Rac8 {[%emt 0:00:22]} 19. a4 {[%emt 0:00:58]} Qc7 {[%emt 0:01:27]} 20. Nce2 {[%emt 0:00:28]} bxa4 {[%emt 0:00:31]} 21. Qxa4 {[%emt 0:00:23]} Nd3 {[%emt 0:00:06]} 22. g3 {[%emt 0:01:01]} e5 {[%emt 0:00:28]} 23. Nf5 {[%emt 0:01:38]} Bf8 {[%emt 0:00:02]} 24. Ba3 {[%emt 0:00:51]} Qb7 {[%emt 0:00:36]} 25. b5 {[%emt 0:00:29]} Qd7 {[%emt 0:00:44]} 26. Bxf8 {[%emt 0:00:29]} Rxf8 {[%emt 0:00:04]} 27. e4 {[%emt 0:00:24]} g6 {[%emt 0:00:52]} 28. Ne3 {[%emt 0:00:11]} axb5 {[%emt 0:00:16]} 29. Qxb5 {[%emt 0:00:07]} Qxb5 {[%emt 0:00:04]} 30. Rxb5 {[%emt 0:00:02]} Nxe4 {[%emt 0:00:04]} 31. Nd5 {[%emt 0:00:46]} Rc2 {[%emt 0:00:13]} 32. Rb3 {[%emt 0:00:17]} Nec5 {[%emt 0:00:12]} 33. Rxd3 {[%emt 0:00:14]} Nxd3 {[%emt 0:00:03]} 34. Nec3 {[%emt 0:00:02]} Kg7 {[%emt 0:00:17]} 35. Ne4 {[%emt 0:00:04]} Rd8 {[%emt 0:00:10]} 36. Ne3 {[%emt 0:00:06]} Rc1 {[%emt 0:00:02]} 37. Rxc1 {[%emt 0:00:03]} Nxc1 {[%emt 0:00:02]} 38. h4 {[%emt 0:00:05]} Nd3 {[%emt 0:00:25]} 39. Kf1 {[%emt 0:00:16]} Nb4 {[%emt 0:00:13]} 40. Kg2 {[%emt 0:00:25]} Ra8 {[%emt 0:00:17]} 41. Nc4 {[%emt 0:00:06]} Nd3 {[%emt 0:00:03]} 42. Kf3 {[%emt 0:00:10]} f5 {[%emt 0:00:06]} 43. Ned2 {[%emt 0:00:03]} e4+ {[%emt 0:00:22]} 44. Ke3 {[%emt 0:00:01]} Nb4 {[%emt 0:00:05]} 45. Ke2 {[%emt 0:00:14]} Ra2 {[%emt 0:00:07]} 46. Ne3 {[%emt 0:00:10]} Nd3 {[%emt 0:00:12]} 47. Nec4 {[%emt 0:00:14]} Kf6 {[%emt 0:00:02]} 48. Ke3 {[%emt 0:00:10]} Ne5 {[%emt 0:00:03]} 49. Nxe5 {[%emt 0:00:14]} Kxe5 {[%emt 0:00:02]} 50. Nc4+ {[%emt 0:00:03]} Kd5 {[%emt 0:00:07]} 51. Nb6+ {[%emt 0:00:02]} Ke6 {[%emt 0:00:08]} 52. Nc4 {[%emt 0:00:01]} Rc2 {[%emt 0:00:03]} 53. Nd2 {[%emt 0:00:18]} Ke5 {[%emt 0:00:02]} 0-1

[Event "FIDE Open World Rapid 2024"]
[Site "New York"]
[Date "2024.12.27"]
[Round "7.38"]
[White "Chasin, Nico"]
[Black "Hong, Andrew"]
[Result "0-1"]
[ECO "A00"]
[WhiteElo "2417"]
[BlackElo "2572"]
[Annotator "ChessBase"]
[PlyCount "44"]
[EventDate "2024.12.14"]
[EventType "swiss"]
[EventCountry "USA"]
[SourceTitle "playchess.com"]
[Source "ChessBase"]
[SourceQuality "1"]
[TimeControl "900+10"]

1. a3 {[%emt 0:00:01]} Nf6 {[%emt 0:00:10]} 2. Nf3 {[%emt 0:00:03]} d5 {[%emt 0:00:33]} 3. d4 {[%emt 0:00:03]} Bf5 {[%emt 0:00:28]} 4. Bf4 {[%emt 0:00:02]} e6 {[%emt 0:00:09]} 5. e3 {[%emt 0:00:09]} c5 {[%emt 0:00:51]} 6. dxc5 {[%emt 0:00:24]} Bxc5 {[%emt 0:00:18]} 7. c4 {[%emt 0:00:27]} Nc6 {[%emt 0:00:31]} 8. Nc3 {[%emt 0:00:15]} O-O {[%emt 0:00:39]} 9. cxd5 {[%emt 0:00:03]} Nxd5 {[%emt 0:01:44]} 10. Nxd5 {[%emt 0:00:15]} exd5 {[%emt 0:00:07]} 11. Bd3 {[%emt 0:00:49]} Bxd3 {[%emt 0:03:30]} 12. Qxd3 {[%emt 0:00:01]} d4 {[%emt 0:01:12]} 13. Ng5 {[%emt 0:01:19]} g6 {[%emt 0:00:37]} 14. Ne4 {[%emt 0:00:01]} Qa5+ {[%emt 0:00:48]} 15. Ke2 {[%emt 0:00:57]} Bb6 {[%emt 0:00:34]} 16. Rhd1 {[%emt 0:02:08]} Rad8 {[%emt 0:01:28]} 17. b4 {[%emt 0:01:07]} Qf5 {[%emt 0:00:19]} 18. Nd6 {[%emt 0:02:47]} Qe6 {[%emt 0:02:13]} 19. b5 {[%emt 0:01:35]} dxe3 {[%emt 0:01:00]} 20. fxe3 {[%emt 0:00:25]} Nd4+ {[%emt 0:00:14]} 21. Ke1 {[%emt 0:02:23]} Nf5 {[%emt 0:00:18]} 22. Qd5 {[%emt 0:00:01]} Rxd6 {[%emt 0:00:17]} 0-1

[Event "FIDE Open World Rapid 2024"]
[Site "New York"]
[Date "2024.12.27"]
[Round "7.38"]
[White "Pereira, Fabian"]
[Black "Urazayev, Arystanbek"]
[Result "0-1"]
[ECO "B15"]
[WhiteElo "2123"]
[BlackElo "2470"]
[Annotator "ChessBase"]
[PlyCount "76"]
[EventDate "2024.12.14"]
[EventType "swiss"]
[EventCountry "USA"]
[SourceTitle "playchess.com"]
[Source "ChessBase"]
[SourceQuality "1"]
[TimeControl "900+10"]

1. e4 {[%emt 0:00:01]} c6 {[%emt 0:00:01]} 2. d4 {[%emt 0:00:02]} d5 {[%emt 0:00:02]} 3. Nd2 {[%emt 0:00:01]} dxe4 {[%emt 0:00:01]} 4. Nxe4 {[%emt 0:00:01]} Nf6 {[%emt 0:00:02]} 5. Nxf6+ {[%emt 0:00:02]} exf6 {[%emt 0:00:02]} 6. c3 {[%emt 0:00:08]} a5 {[%emt 0:00:02]} 7. Bd3 {[%emt 0:00:14]} Na6 {[%emt 0:00:01]} 8. Ne2 {[%emt 0:00:08]} g6 {[%emt 0:00:02]} 9. O-O {[%emt 0:00:05]} Bg7 {[%emt 0:00:02]} 10. f4 {[%emt 0:00:47]} f5 {[%emt 0:00:15]} 11. Kh1 {[%emt 0:01:46]} O-O {[%emt 0:00:04]} 12. Be3 {[%emt 0:00:40]} Nc7 {[%emt 0:00:02]} 13. Qd2 {[%emt 0:01:50]} Nd5 {[%emt 0:00:03]} 14. Bg1 {[%emt 0:00:25]} Re8 {[%emt 0:00:03]} 15. Rad1 {[%emt 0:00:01]} Nf6 {[%emt 0:00:04]} 16. Ng3 {[%emt 0:00:13]} Qd6 {[%emt 0:01:11]} 17. c4 {[%emt 0:00:38]} Bd7 {[%emt 0:00:07]} 18. Bb1 {[%emt 0:01:00]} h5 {[%emt 0:00:13]} 19. Ne2 {[%emt 0:00:38]} h4 {[%emt 0:00:12]} 20. Nc3 {[%emt 0:00:11]} h3 {[%emt 0:00:43]} 21. gxh3 {[%emt 0:00:07]} b5 {[%emt 0:00:07]} 22. b3 {[%emt 0:00:19]} a4 {[%emt 0:00:41]} 23. c5 {[%emt 0:00:52]} Qc7 {[%emt 0:00:14]} 24. b4 {[%emt 0:00:23]} Be6 {[%emt 0:00:08]} 25. a3 {[%emt 0:00:17]} Nd5 {[%emt 0:00:31]} 26. Bf2 {[%emt 0:00:23]} Nxc3 {[%emt 0:00:16]} 27. Qxc3 {[%emt 0:00:02]} Bd5+ {[%emt 0:00:02]} 28. Kg1 {[%emt 0:00:02]} Qxf4 {[%emt 0:00:35]} 29. Qg3 {[%emt 0:00:33]} Qh6 {[%emt 0:00:22]} 30. h4 {[%emt 0:00:37]} Qh5 {[%emt 0:00:06]} 31. Bd3 {[%emt 0:00:41]} Re6 {[%emt 0:01:05]} 32. h3 {[%emt 0:01:07]} Rae8 {[%emt 0:00:19]} 33. Kh2 {[%emt 0:00:11]} Bh6 {[%emt 0:00:41]} 34. Rfe1 {[%emt 0:01:15]} Rxe1 {[%emt 0:01:22]} 35. Rxe1 {[%emt 0:00:02]} Rxe1 {[%emt 0:00:01]} 36. Bxe1 {[%emt 0:00:02]} Qd1 {[%emt 0:00:21]} 37. Bxf5 {[%emt 0:00:54]} Qe2+ {[%emt 0:01:22]} 38. Bf2 {[%emt 0:00:40]} Qf1 {[%emt 0:00:04]} 0-1

[Event "FIDE Open World Rapid 2024"]
[Site "New York"]
[Date "2024.12.27"]
[Round "7.39"]
[White "Wei, Yi"]
[Black "Bologan, Victor"]
[Result "1-0"]
[ECO "C41"]
[WhiteElo "2753"]
[BlackElo "2600"]
[Annotator "TA"]
[PlyCount "107"]
[EventDate "2024.12.14"]
[EventType "swiss"]
[EventCountry "USA"]
[SourceTitle "playchess.com"]
[Source "ChessBase"]
[SourceQuality "1"]
[TimeControl "900+10"]

{[%evp 21,107,35,60,30,43,46,45,25,40,0,37,31,35,19,43,12,45,45,51,57,54,51,55,35,25,19,46,8,46,20,16,0,0,0,0,0,0,0,85,-104,40,24,74,0,0,-141,-160,-141,-140,-138,-8,-96,-87,-102,-68,-139,-110,-125,-91,-84,0,-106,-100,-105,0,0,0,-126,-94,-87,-101,-110,0,0,0,-9,16,30,31,9,365,381,388,385,547,542,543,524]} 1. e4 {[%emt 0:00:03]} d6 {[%emt 0:00:01]} 2. d4 {[%emt 0:00:02]} Nf6 {[%emt 0:00:01]} 3. Nc3 {[%emt 0:00:04]} e5 {[%emt 0:00:02]} 4. Nf3 {[%emt 0:00:15]} Nbd7 {[%emt 0:00:01]} 5. Bc4 {[%emt 0:00:35]} Be7 {[%emt 0:00:03]} 6. O-O {[%emt 0:00:08]} O-O {[%emt 0:00:02]} 7. a4 {[%emt 0:00:02]} c6 {[%emt 0:00:02]} 8. Ba2 {[%emt 0:00:11]} h6 {[%emt 0:00:17]} 9. Re1 {[%emt 0:01:09]} Re8 {[%emt 0:00:08]} 10. h3 {[%emt 0:00:59]} Bf8 {[%emt 0:00:07]} 11. Be3 {[%emt 0:00:07]} a5 {[%emt 0:03:10]} 12. Qd3 {[%emt 0:02:18]} exd4 {[%emt 0:00:08]} 13. Bxd4 {[%emt 0:00:03]} Qc7 {[%emt 0:00:50]} 14. Nh4 {[%emt 0:02:17]} Ne5 {[%emt 0:00:24]} 15. Qg3 {[%emt 0:01:24]} Be6 {[%emt 0:01:29]} 16. Bxe6 {[%emt 0:00:46]} Rxe6 {[%emt 0:00:01]} 17. f4 {[%emt 0:00:21]} (17. Nf5 $5) 17... Ned7 {[%emt 0:00:05]} 18. Nf5 {[%emt 0:00:38]} Kh7 {[%emt 0:00:53]} 19. Qf3 {[%emt 0:00:22]} g6 {[%emt 0:01:13]} 20. Ng3 {[%emt 0:02:03]} Bg7 {[%emt 0:00:09][%cal Of6h5]} 21. Rad1 {[%emt 0:00:02]} Rae8 {[%emt 0:00:28]} 22. Kh2 {[%emt 0:00:15]} R6e7 {[%emt 0:01:00]} 23. b3 {[%emt 0:00:11]} h5 {[%emt 0:00:57]} 24. Nf1 {[%emt 0:00:08]} d5 {[%emt 0:00:25]} 25. e5 {[%emt 0:00:12]} Ng8 $1 {[%emt 0:00:01]} 26. Ne3 {[%emt 0:02:36][%cal Oe3d5]} Nxe5 {[%emt 0:01:40]} 27. fxe5 {[%emt 0:00:06]} Bxe5+ {[%emt 0:00:01]} 28. g3 $1 {[%emt 0:00:21]} Bxd4 $1 {[%emt 0:01:58]} 29. Rxd4 {[%emt 0:00:02]} Nh6 {[%emt 0:00:16]} (29... Qb6 $1 $11 30. Rd3 Qc5) 30. Rf4 $2 {[%emt 0:00:46]} (30. Ncd1 $16 {and life is bright.}) 30... f5 {[%emt 0:01:08]} ({Better is} 30... Qd8 $1 $17 31. Kg2 d4) 31. Ncd1 $14 {[%emt 0:00:40]} Nf7 {[%emt 0:00:14] [#]} (31... Re5 $11) 32. Rxf5 {[%emt 0:00:38]} gxf5 {[%emt 0:01:14]} 33. Qxf5+ {[%emt 0:00:25]} (33. Qxh5+ $11 {keeps the balance.} Nh6 34. Nxf5 Rxe1 35. Qxh6+ Kg8 36. Qg6+ Kh8 37. Qf6+ Kg8 38. Qg6+) 33... Kg7 $17 {[%emt 0:00:07]} 34. Qxh5 {[%emt 0:00:12]} Re5 {[%emt 0:00:26]} 35. Qg4+ {[%emt 0:00:19]} Kh8 {[%emt 0:01:09]} (35... Kf8 $17 36. Qh4 Kg8) 36. Rf1 {[%emt 0:00:17] [#]} (36. Nf5 $1 $11 Nh6 (36... Rxe1 37. Qg7#) 37. Qh4) 36... Nh6 $1 {[%emt 0:00:15]} (36... Rxe3 37. Nxe3 Rxe3 38. Rxf7 Qxf7 39. Qd4+ Kg8 40. Qxe3 $14) 37. Qh4 {[%emt 0:00:07]} Qh7 {[%emt 0:00:03][%cal Oe5e4]} 38. Qd4 {[%emt 0:00:11]} (38. c4 $15) 38... Qg7 {[%emt 0:00:07][%cal Oe5e3]} 39. Qd2 {[%emt 0:00:12]} d4 {[%emt 0:00:11]} 40. Ng2 {[%emt 0:00:04]} (40. Qxd4 $2 Rxe3 41. Qxg7+ Kxg7 $19) 40... Nf5 {[%emt 0:00:11]} (40... c5 $17 41. Nf4 Rg8) 41. Qf4 {[%emt 0:00:11]} (41. Qd3 $11 {was the only way to keep the balance.} Qh7 42. Rf4) 41... Ne3 {[%emt 0:00:11]} 42. Qh4+ {[%emt 0:00:15]} Qh7 {[%emt 0:00:14]} 43. Qf6+ $1 {[%emt 0:00:01]} Qg7 {[%emt 0:00:02]} 44. Qh4+ {[%emt 0:00:01]} Kg8 {[%emt 0:00:02]} 45. Ndxe3 {[%emt 0:00:10]} dxe3 {[%emt 0:00:07]} 46. Qc4+ {[%emt 0:00:10]} Kh8 {[%emt 0:00:18]} (46... R8e6 $17 {White must now prevent ...e2.} 47. Rf4 Qe7 (47... e2 $2 48. Rg4 $18) 48. Rg4+ Kf7) 47. Rf4 $11 {[%emt 0:00:05] and Rh4+ would now be decisive} R5e6 {[%emt 0:00:20]} 48. Qe2 {[%emt 0:00:14]} Rh6 {[%emt 0:00:10]} 49. Nxe3 {[%emt 0:00:20][%cal Bg2e3,Be3g4,Bg4f6][%mdl 32]} Qe5 {[%emt 0:00:24][%cal Oe5h5]} 50. Qf2 {[%emt 0:00:14]} (50. Qf3 $5 Rg6 (50... Qxe3 $2 51. Rf8+ Rxf8 52. Qxe3 $18) 51. Ng2 $11) 50... Qe6 $2 {[%emt 0:00:09][%mdl 8192]} (50... Qxe3 $2 {is the wrong capture.} 51. Rf8+ Rxf8 52. Qxe3 $18) (50... Rg6 $11 51. Ng2 Rg5) 51. Ng4 $18 {[%emt 0:00:06]} Rg6 {[%emt 0:00:10] [#]} 52. Qd4+ $1 {[%emt 0:00:10]} Rg7 {[%emt 0:00:07]} (52... Kg8 {was worth a try.} 53. Nf6+ Rxf6 54. Rxf6 Qe4 55. Qxe4 Rxe4) 53. Nf6 {[%emt 0:00:02] White wants to mate with Rh4+.} Qe2+ {[%emt 0:00:12]} 54. Rf2 {[%emt 0:00:01]} 1-0

[Event "FIDE Open World Rapid 2024"]
[Site "New York"]
[Date "2024.12.27"]
[Round "7.39"]
[White "Meylan, Andre"]
[Black "Thavandiran, Shiyam"]
[Result "0-1"]
[ECO "C02"]
[WhiteElo "2138"]
[BlackElo "2410"]
[Annotator "ChessBase"]
[PlyCount "36"]
[EventDate "2024.12.14"]
[EventType "swiss"]
[EventCountry "USA"]
[SourceTitle "playchess.com"]
[Source "ChessBase"]
[SourceQuality "1"]
[TimeControl "900+10"]

1. e4 {[%emt 0:00:01]} e6 {[%emt 0:00:01]} 2. d4 {[%emt 0:00:02]} d5 {[%emt 0:00:01]} 3. e5 {[%emt 0:00:02]} c5 {[%emt 0:00:01]} 4. Qg4 {[%emt 0:00:01]} cxd4 {[%emt 0:00:07]} 5. Nf3 {[%emt 0:00:01]} Nc6 {[%emt 0:00:12]} 6. Bd3 {[%emt 0:00:01]} Qc7 {[%emt 0:02:51]} 7. Bf4 {[%emt 0:00:07]} Nb4 {[%emt 0:00:08]} 8. Nxd4 {[%emt 0:01:07]} Nxd3+ {[%emt 0:00:31]} 9. cxd3 {[%emt 0:00:01]} Qb6 {[%emt 0:00:41]} 10. Nb3 {[%emt 0:01:13]} Qb4+ {[%emt 0:01:16]} 11. N1d2 {[%emt 0:00:55]} g5 {[%emt 0:00:07]} 12. g3 {[%emt 0:04:37]} gxf4 {[%emt 0:00:07]} 13. a3 {[%emt 0:00:01]} Qb5 {[%emt 0:00:32]} 14. gxf4 {[%emt 0:00:48]} Qxd3 {[%emt 0:00:05]} 15. Rc1 {[%emt 0:00:04]} Nh6 {[%emt 0:00:19]} 16. Qh4 {[%emt 0:01:03]} Nf5 {[%emt 0:00:25]} 17. Qf6 {[%emt 0:00:24]} Rg8 {[%emt 0:01:08]} 18. Rc7 {[%emt 0:00:21]} Be7 {[%emt 0:00:07]} 0-1

[Event "FIDE Open World Rapid 2024"]
[Site "New York"]
[Date "2024.12.27"]
[Round "7.40"]
[White "Xiong, Jeffery"]
[Black "Vokhidov, Shamsiddin"]
[Result "1-0"]
[ECO "D38"]
[WhiteElo "2636"]
[BlackElo "2681"]
[Annotator "ChessBase"]
[PlyCount "65"]
[EventDate "2024.12.14"]
[EventType "swiss"]
[EventCountry "USA"]
[SourceTitle "playchess.com"]
[Source "ChessBase"]
[SourceQuality "1"]
[TimeControl "900+10"]

1. d4 {[%emt 0:00:02]} Nf6 {[%emt 0:00:01]} 2. c4 {[%emt 0:00:02]} e6 {[%emt 0:00:01]} 3. Nf3 {[%emt 0:00:03]} d5 {[%emt 0:00:01]} 4. Nc3 {[%emt 0:00:02]} Bb4 {[%emt 0:00:11]} 5. Qa4+ {[%emt 0:00:03]} Nc6 {[%emt 0:00:02]} 6. e3 {[%emt 0:00:03]} O-O {[%emt 0:00:02]} 7. Qc2 {[%emt 0:00:02]} Re8 {[%emt 0:00:01]} 8. Bd2 {[%emt 0:00:11]} Bf8 {[%emt 0:00:03]} 9. a3 {[%emt 0:00:23]} e5 {[%emt 0:00:02]} 10. dxe5 {[%emt 0:00:24]} Nxe5 {[%emt 0:00:01]} 11. cxd5 {[%emt 0:00:02]} Nxf3+ {[%emt 0:00:01]} 12. gxf3 {[%emt 0:00:02]} Nxd5 {[%emt 0:00:01]} 13. h4 {[%emt 0:00:17]} a5 {[%emt 0:00:14]} 14. Bd3 {[%emt 0:00:41]} h6 {[%emt 0:00:12]} 15. Rg1 {[%emt 0:01:33]} Be6 {[%emt 0:01:17]} 16. Ne4 {[%emt 0:03:03]} Qxh4 {[%emt 0:01:06]} 17. O-O-O {[%emt 0:00:03]} c5 {[%emt 0:03:58]} 18. Ng5 {[%emt 0:02:35]} hxg5 {[%emt 0:01:17]} 19. Rh1 {[%emt 0:00:02]} Bh3 {[%emt 0:00:14]} 20. Bf5 {[%emt 0:03:14]} Bxf5 {[%emt 0:01:43]} 21. Qxf5 {[%emt 0:00:02]} Qc4+ {[%emt 0:00:04]} 22. Bc3 {[%emt 0:00:02]} Nf6 {[%emt 0:00:24]} 23. Qh3 {[%emt 0:01:45]} Qh4 {[%emt 0:00:45]} 24. Qg2 {[%emt 0:01:06]} Qc4 {[%emt 0:00:31]} 25. Qh2 {[%emt 0:02:01]} Qh4 {[%emt 0:00:22]} 26. Qg1 {[%emt 0:00:01]} Qc4 {[%emt 0:00:47]} 27. Qxg5 {[%emt 0:00:57]} Rad8 {[%emt 0:02:41]} 28. Rdg1 {[%emt 0:00:02]} Rd6 {[%emt 0:00:49]} 29. Rh4 {[%emt 0:00:28]} Qd3 {[%emt 0:01:37]} 30. Bxf6 {[%emt 0:00:17]} Qd2+ {[%emt 0:01:00]} 31. Kb1 {[%emt 0:00:02]} Qd3+ {[%emt 0:00:03]} 32. Ka1 {[%emt 0:00:18]} Qb3 {[%emt 0:00:10]} 33. Qxg7+ {[%emt 0:00:16]} 1-0